fUSD/lending_fUSD_20260510
["ID","MTS","AMOUNT","RATE_DAILY","PERIOD"]
[421970527,1778381438000,-500.0,0.00013699,2]
[421970521,1778381438000,-500.0,0.00013699,2]
[421970547,1778381439000,-500.0,0.00013699,2]
[421970543,1778381439000,-500.0,0.00013699,2]
[421970544,1778381439000,-500.0,0.00013699,2]
[421970545,1778381439000,-500.0,0.00013699,2]
[421970546,1778381439000,-500.0,0.00013699,2]
[421970548,1778381439000,-500.0,0.00013699,2]
[421970555,1778381439000,-31607.98540862,0.00015,2]
[421970550,1778381439000,-13416.02355742,0.00015,2]
[421970551,1778381439000,-791.21744909,0.00015,2]
[421970552,1778381439000,-34440.27586678,0.00015,2]
[421970554,1778381439000,-593.45244882,0.00015,2]
[421970553,1778381439000,-260972.20213157,0.00015,2]
[421970556,1778381439000,-5429.85748549,0.00015,2]
[421970549,1778381439000,-500.0,0.00013699,2]
[421970558,1778381440000,-314.29498764,0.00015,2]
[421970557,1778381440000,-1902.4269139,0.00015,2]
[421970561,1778381440000,-9944.15641951,0.00015,2]
[421970560,1778381440000,-3966.05,0.00015,2]
[421970559,1778381440000,-530.21,0.00015,2]
[421970562,1778381440000,-713.67957342,0.00015,2]
[421970597,1778381453000,-10000.01,0.00015,2]
[421970598,1778381540000,-1617.31686064,0.00015,2]
[421970600,1778381540000,-31261.24175741,0.00015,2]
[421970602,1778381540000,-853.9665,0.00015,2]
[421970599,1778381540000,-3281.42634326,0.00015,2]
[421970604,1778381540000,-5529.0831669,0.00015,2]
[421970603,1778381540000,-5187.44784862,0.00015,2]
[421970605,1778381540000,-1496.59487774,0.00015,2]
[421970601,1778381540000,-1838.8604776,0.00015,2]
[421970612,1778381541000,-941.47040323,0.00015,2]
[421970611,1778381541000,-435.63637737,0.00015,2]
[421970608,1778381541000,-793.09,0.00015,2]
[421970609,1778381541000,-6011.23450505,0.00015,2]
[421970610,1778381541000,-1024.04884267,0.00015,2]
[421970606,1778381541000,-37844.59325403,0.00015,2]
[421970607,1778381541000,-2252.10110222,0.00015,2]
[421970613,1778381541000,-659.30907396,0.00015,2]
[421970616,1778381563000,-851.542211,0.00014925,2]
[421970617,1778381563000,-300.0,0.00014962,2]
[421970618,1778381563000,-8848.467789,0.00015,2]
[421970636,1778381564000,-500.0,0.00013699,2]
[421970635,1778381564000,-500.0,0.00013699,2]
[421970633,1778381564000,-500.0,0.00013699,2]
[421970634,1778381564000,-500.0,0.00013699,2]
[421970632,1778381564000,-500.0,0.00013699,2]
[421970629,1778381564000,-500.0,0.00013699,2]
[421970628,1778381564000,-500.0,0.00013699,2]
[421970630,1778381564000,-500.0,0.00013699,2]
[421970631,1778381564000,-500.0,0.00013699,2]
[421970627,1778381564000,-500.0,0.00013699,2]
[421970624,1778381564000,-500.0,0.00013698,2]
[421970626,1778381564000,-500.0,0.00013699,2]
[421970623,1778381564000,-277.81811271,0.00013698,2]
[421970622,1778381564000,-500.0,0.00013698,2]
[421970621,1778381564000,-178.49837266,0.00010448,2]
[421970619,1778381564000,-500.0,0.00010448,2]
[421970620,1778381564000,-500.0,0.00010448,2]
[421970625,1778381564000,-500.0,0.00013698,2]
[421970638,1778381564000,-500.0,0.00013699,2]
[421970655,1778381564000,-793.01,0.00013699,2]
[421970639,1778381564000,-500.0,0.00013699,2]
[421970637,1778381564000,-400.0,0.00013699,2]
[421970657,1778381564000,-9008.75,0.00015,2]
[421970656,1778381564000,-198.25,0.00014384,2]
[421970654,1778381564000,-1757.07146571,0.00015,2]
[421970652,1778381564000,-250.0,0.00014912,2]
[421970651,1778381564000,-2260.04654319,0.000149,2]
[421970649,1778381564000,-2856.29648537,0.000149,2]
[421970650,1778381564000,-2216.56293057,0.000149,2]
[421970653,1778381564000,-150.34542768,0.00014957,2]
[421970647,1778381564000,-7143.70351463,0.000149,2]
[421970648,1778381564000,-509.68714748,0.00013698,2]
[421970641,1778381564000,-356.30648537,0.00013699,2]
[421970643,1778381564000,-500.0,0.00013699,2]
[421970640,1778381564000,-143.69351463,0.00013699,2]
[421970644,1778381564000,-500.0,0.00013699,2]
[421970645,1778381564000,-500.0,0.00013699,2]
[421970646,1778381564000,-500.0,0.00013699,2]
[421970642,1778381564000,-500.0,0.00013699,2]
[421970671,1778381565000,-500.0,0.00010448,2]
[421970658,1778381565000,-500.0,0.00010448,2]
[421970659,1778381565000,-349.1705878,0.00010448,2]
[421970661,1778381565000,-500.0,0.00010448,2]
[421970662,1778381565000,-555.06116698,0.00010448,2]
[421970664,1778381565000,-310.64853539,0.00010448,2]
[421970663,1778381565000,-500.0,0.00010448,2]
[421970666,1778381565000,-500.0,0.00010448,2]
[421970665,1778381565000,-351.96721685,0.00010448,2]
[421970668,1778381565000,-500.0,0.00010448,2]
[421970667,1778381565000,-500.0,0.00010448,2]
[421970670,1778381565000,-350.0,0.00010448,2]
[421970660,1778381565000,-500.0,0.00010448,2]
[421970669,1778381565000,-500.0,0.00010448,2]
[421970672,1778381565000,-500.0,0.00013698,2]
[421970684,1778381565000,-334.3737,0.00010448,2]
[421970682,1778381565000,-500.0,0.00010448,2]
[421970680,1778381565000,-500.0,0.00010448,2]
[421970681,1778381565000,-500.0,0.00010448,2]
[421970679,1778381565000,-500.0,0.00010448,2]
[421970683,1778381565000,-500.0,0.00010448,2]
[421970675,1778381565000,-2000.0,0.0001035,2]
[421970678,1778381565000,-500.0,0.00010448,2]
[421970676,1778381565000,-4165.6363,0.0001035,2]
[421970673,1778381565000,-235.56833244,0.00013698,2]
[421970674,1778381565000,-2847.59416054,0.00015,2]
[421970677,1778381565000,-500.0,0.00010448,2]
[421970694,1778381566000,-1481.37,0.0001035,2]
[421970685,1778381566000,586.44,7.273e-05,2]
[421970686,1778381566000,586.44,7.655e-05,2]
[421970687,1778381566000,586.44,8.038e-05,2]
[421970689,1778381566000,-586.44,8.804e-05,2]
[421970688,1778381566000,-586.44,8.421e-05,2]
[421970690,1778381566000,-586.44,9.186e-05,2]
[421970691,1778381566000,-586.44,9.569e-05,2]
[421970693,1778381566000,-586.44,0.00010335,2]
[421970692,1778381566000,-586.44,9.952e-05,2]
[421970697,1778381566000,-500.0,0.00010448,2]
[421970696,1778381566000,-167.86775799,0.00010448,2]
[421970698,1778381566000,-500.0,0.00010448,2]
[421970701,1778381566000,-500.0,0.00010448,2]
[421970699,1778381566000,-500.0,0.00010448,2]
[421970700,1778381566000,-500.0,0.00010448,2]
[421970702,1778381566000,-500.0,0.00010448,2]
[421970703,1778381566000,-500.0,0.00010448,2]
[421970704,1778381566000,-313.51224201,0.00010448,2]
[421970695,1778381566000,-1018.63,0.0001035,2]
[421970705,1778381582000,-186.48775799,0.00010448,2]
[421970708,1778381626000,-500.0,0.0001035,2]
[421970706,1778381626000,-300.0,0.00010447,2]
[421970707,1778381626000,-200.0,0.00010448,2]
[421970709,1778381627000,-500.0,0.0001035,2]
[421970710,1778381627000,-151.51,0.00010176,2]
[421970711,1778381627000,-348.49,0.00010348,2]
[421970723,1778381790000,-500.0,0.00010349,2]
[421970713,1778381790000,-500.85171419,0.00010348,2]
[421970714,1778381790000,-150.0,0.00010349,2]
[421970715,1778381790000,-300.0,0.00010349,2]
[421970716,1778381790000,-1200.0,0.00010349,2]
[421970719,1778381790000,-195.47992346,0.00010349,2]
[421970717,1778381790000,-300.0,0.00010349,2]
[421970718,1778381790000,-1158.87283292,0.00010349,2]
[421970720,1778381790000,-500.0,0.00010349,2]
[421970721,1778381790000,-500.0,0.00010349,2]
[421970722,1778381790000,-190.41749557,0.00010349,2]
[421970724,1778381790000,-500.0,0.00010349,2]
[421970725,1778381790000,-500.0,0.00010349,2]
[421970737,1778381790000,-500.0,0.00010349,2]
[421970727,1778381790000,-500.0,0.00010349,2]
[421970726,1778381790000,-500.0,0.00010349,2]
[421970738,1778381790000,-500.0,0.00010349,2]
[421970739,1778381790000,-500.0,0.00010349,2]
[421970736,1778381790000,-500.0,0.00010349,2]
[421970735,1778381790000,-500.0,0.00010349,2]
[421970734,1778381790000,-500.0,0.00010349,2]
[421970740,1778381790000,-326.38512221,0.00010349,2]
[421970732,1778381790000,-500.0,0.00010349,2]
[421970731,1778381790000,-500.0,0.00010349,2]
[421970730,1778381790000,-500.0,0.00010349,2]
[421970729,1778381790000,-150.0,0.00010349,2]
[421970728,1778381790000,-461.99291165,0.00010349,2]
[421970733,1778381790000,-500.0,0.00010349,2]
[421970743,1778382048000,235.42,0.00027397,120]
[421970745,1778382150000,4560.63996559,8e-05,2]
[421970749,1778382340000,-4208.26890922,9.127e-05,2]
[421970748,1778382340000,-150.0,9.117e-05,2]
[421970750,1778382357000,161.28,7.297e-05,2]
[421970752,1778382416000,980.34,4.786e-05,2]
[421970751,1778382416000,980.34,4.547e-05,2]
[421970755,1778382417000,980.34,5.504e-05,2]
[421970754,1778382417000,980.34,5.265e-05,2]
[421970753,1778382417000,980.34,5.026e-05,2]
[421970756,1778382418000,980.34,5.744e-05,2]
[421970757,1778382418000,980.34,5.983e-05,2]
[421970759,1778382418000,980.34,6.462e-05,2]
[421970760,1778382418000,980.34,6.701e-05,2]
[421970758,1778382418000,980.34,6.222e-05,2]
[421970764,1778382419000,980.34,7.658e-05,2]
[421970763,1778382419000,980.34,7.419e-05,2]
[421970762,1778382419000,980.34,7.18e-05,2]
[421970761,1778382419000,980.34,6.94e-05,2]
[421970767,1778382420000,980.34,8.376e-05,2]
[421970766,1778382420000,980.34,8.137e-05,2]
[421970765,1778382420000,980.34,7.898e-05,2]
[421970768,1778382428000,-157.78913883,8.615e-05,2]
[421970769,1778382430000,-178.92319432,8.615e-05,2]
[421970770,1778382435000,-153.01446323,8.615e-05,2]
[421970772,1778382443000,-163.13517958,8.855e-05,2]
[421970771,1778382443000,-490.61320362,8.615e-05,2]
[421970777,1778382448000,-225.39668444,9.126e-05,2]
[421970776,1778382448000,-1072.9,9.117e-05,2]
[421970775,1778382448000,-1000.0,9.094e-05,2]
[421970774,1778382448000,-980.34,9.094e-05,2]
[421970773,1778382448000,-817.20482042,8.855e-05,2]
[421970778,1778382558000,-5178.43,8.946e-05,2]
[421970779,1778382558000,-225.42,8.969e-05,2]
[421970780,1778382558000,-250.0,9.029e-05,2]
[421970781,1778382558000,-232.0,9.089e-05,2]
[421970784,1778382558000,-232.0,9.179e-05,2]
[421970785,1778382558000,-232.0,9.269e-05,2]
[421970782,1778382558000,-397.66320024,9.127e-05,2]
[421970787,1778382558000,-825.91783064,9.38e-05,2]
[421970786,1778382558000,-232.0,9.359e-05,2]
[421970783,1778382558000,-13653.98109078,9.127e-05,2]
[421970788,1778382568000,-804.3761992,9.38e-05,2]
[421970790,1778382573000,-1010.43096023,9.38e-05,2]
[421970789,1778382573000,-1729.28031062,9.38e-05,2]
[421970791,1778382573000,-433.25903977,9.38e-05,2]
[421970793,1778382573000,-234.6184427,9.477e-05,2]
[421970794,1778382573000,-232.0,9.539e-05,2]
[421970795,1778382573000,-1076.77,9.597e-05,2]
[421970796,1778382573000,-232.0,9.629e-05,2]
[421970797,1778382573000,-232.0,9.719e-05,2]
[421970799,1778382573000,-168.98,9.811e-05,2]
[421970792,1778382573000,-232.0,9.449e-05,2]
[421970800,1778382573000,-250.0,9.866e-05,2]
[421970801,1778382573000,-500.0,9.873e-05,2]
[421970807,1778382573000,-2434.8306,0.00010125,2]
[421970805,1778382573000,-225.42,0.0001009,2]
[421970806,1778382573000,-150.0,0.0001009,2]
[421970808,1778382573000,-477.31682791,0.00010125,2]
[421970804,1778382573000,-506.88399035,0.00010029,2]
[421970802,1778382573000,-240.0,9.899e-05,2]
[421970798,1778382573000,-232.0,9.809e-05,2]
[421970803,1778382573000,-1112.92988727,0.0001,2]
[421970831,1778382631000,-500.0,0.00010225,2]
[421970835,1778382631000,-500.0,0.00010225,2]
[421970836,1778382631000,-500.0,0.00010225,2]
[421970837,1778382631000,-500.0,0.00010225,2]
[421970832,1778382631000,-500.0,0.00010225,2]
[421970829,1778382631000,-35682.58852208,0.00010216,2]
[421970830,1778382631000,-938.10380888,0.00010225,2]
[421970827,1778382631000,-153.12137068,0.00010175,2]
[421970824,1778382631000,-2500.0,0.00010126,2]
[421970825,1778382631000,-1616.019,0.00010168,2]
[421970826,1778382631000,-158.315,0.00010168,2]
[421970823,1778382631000,-300.0,0.00010125,2]
[421970822,1778382631000,-1200.0,0.00010125,2]
[421970821,1778382631000,-4165.6363,0.00010125,2]
[421970820,1778382631000,-369.45408172,0.0001007,2]
[421970818,1778382631000,-466.89,9.759e-05,2]
[421970819,1778382631000,-250.0,9.942e-05,2]
[421970828,1778382631000,-645.55505471,0.00010215,2]
[421970834,1778382631000,-310.49155619,0.00010225,2]
[421970838,1778382631000,-304.65363861,0.00010225,2]
[421970839,1778382631000,-139729.1034266,0.00010226,2]
[421970855,1778382631000,-34067.68741305,0.0001035,2]
[421970857,1778382631000,-72457.59590646,0.0001035,2]
[421970853,1778382631000,-138200.69797967,0.0001035,2]
[421970854,1778382631000,-382830.496,0.0001035,2]
[421970856,1778382631000,-684706.03271614,0.0001035,2]
[421970851,1778382631000,-500.0,0.00010349,2]
[421970852,1778382631000,-196.68459485,0.00010349,2]
[421970849,1778382631000,-449.60414538,0.00010349,2]
[421970850,1778382631000,-500.0,0.00010349,2]
[421970833,1778382631000,-500.0,0.00010225,2]
[421970844,1778382631000,-252.31654299,0.0001034,2]
[421970843,1778382631000,-9999.99,0.00010298,2]
[421970845,1778382631000,-500.0,0.00010348,2]
[421970848,1778382631000,-500.0,0.00010349,2]
[421970847,1778382631000,-151.0,0.00010349,2]
[421970841,1778382631000,-5000.0,0.0001025,2]
[421970842,1778382631000,-173.03748203,0.00010298,2]
[421970840,1778382631000,-163.9497,0.00010226,2]
[421970846,1778382631000,-828.83505188,0.00010349,2]
[421970891,1778382637000,-736.12857669,0.00010126,2]
[421970890,1778382637000,-668.61257251,0.00010126,2]
[421970895,1778382638000,-27207.78442402,0.0001035,2]
[421970892,1778382638000,-1095.2588508,0.00010126,2]
[421970894,1778382638000,-18855.71303682,0.0001035,2]
[421970896,1778382638000,-1906.31029911,0.0001035,2]
[421970893,1778382638000,-414.41752594,0.0001035,2]
[421970951,1778382642000,-207.20876297,0.0001035,2]
[421970952,1778382642000,-636.2159442,0.0001035,2]
[421970953,1778382643000,-61909.99949952,0.0001035,2]
[421970960,1778382645000,-77221.46678101,0.0001035,2]
[421970961,1778382645000,-164.3333,0.00010451,2]
[421970962,1778382645000,-653.2410112,0.00010618,2]
[421970964,1778382645000,-175.56571433,0.00010618,2]
[421970963,1778382645000,-3887.62563374,0.00010618,2]
[421970966,1778382645000,-52548.99430036,0.000107,2]
[421970967,1778382645000,-6318.00471814,0.000107,2]
[421970965,1778382645000,-252.31654299,0.0001069,2]
[421971011,1778382721000,2991.85,0.00027397,120]
[421971012,1778382737000,500.0,8.869e-05,2]
[421971016,1778383020000,861.0,0.000273,120]
[421971017,1778383035000,700.0,0.000273,120]
[421971018,1778383124000,150.88923077,0.0001,30]
[421971019,1778383276000,-475.92,9.302e-05,2]
[421971021,1778383297000,198.61,9.138e-05,2]
[421971022,1778383312000,1135.98397219,9.138e-05,2]
[421971023,1778383312000,722.8955016,9.138e-05,2]
[421971024,1778383314000,-157.96397505,9.138e-05,2]
[421971025,1778383317000,-343.97417126,9.138e-05,2]
[421971032,1778383547000,-622.87243353,9.487e-05,2]
[421971031,1778383547000,-235.42987416,9.343e-05,2]
[421971030,1778383547000,-250.0,9.343e-05,2]
[421971029,1778383547000,-152.0,9.205e-05,2]
[421971028,1778383547000,-1700.7723799,9.138e-05,2]
[421971027,1778383547000,-250.0,9.126e-05,2]
[421971026,1778383547000,-844.04,9.115e-05,2]
[421971040,1778383630000,-2632.43,9.335e-05,2]
[421971042,1778383630000,-238.53756647,9.487e-05,2]
[421971043,1778383630000,-250.0,9.506e-05,2]
[421971044,1778383630000,-152.0,9.573e-05,2]
[421971048,1778383630000,-300.0,9.914e-05,2]
[421971047,1778383630000,-1200.0,9.914e-05,2]
[421971041,1778383630000,-2348.410063,9.439e-05,2]
[421971045,1778383630000,-152.0,9.661e-05,2]
[421971049,1778383630000,-300.0,9.914e-05,2]
[421971050,1778383630000,-300.0,9.915e-05,2]
[421971051,1778383630000,-300.0,9.915e-05,2]
[421971053,1778383630000,-690.56720425,9.916e-05,2]
[421971052,1778383630000,-150.0,9.915e-05,2]
[421971054,1778383630000,-6223.79063824,9.916e-05,2]
[421971046,1778383630000,-171.18,9.904e-05,2]
[421971055,1778383635000,150.0,0.00027397,120]
[421971069,1778383770000,-500.0,0.00010015,2]
[421971068,1778383770000,-476.62558671,0.00010015,2]
[421971073,1778383770000,-654.30482283,0.00010015,2]
[421971072,1778383770000,-500.0,0.00010015,2]
[421971071,1778383770000,-500.0,0.00010015,2]
[421971067,1778383770000,-500.0,0.00010015,2]
[421971070,1778383770000,-500.0,0.00010015,2]
[421971065,1778383770000,-500.0,0.00010015,2]
[421971061,1778383770000,-250.0,9.959e-05,2]
[421971063,1778383770000,-174.466,0.00010014,2]
[421971064,1778383770000,-1292.815,0.00010014,2]
[421971062,1778383770000,-200.0,0.00010002,2]
[421971059,1778383770000,-2173.5548,9.916e-05,2]
[421971074,1778383770000,-654.30482283,0.00010015,2]
[421971060,1778383770000,-1338.6617,9.916e-05,2]
[421971057,1778383770000,-7171.73606176,9.916e-05,2]
[421971058,1778383770000,-2616.158,9.916e-05,2]
[421971066,1778383770000,-500.0,0.00010015,2]
[421971075,1778383770000,-654.30482283,0.00010015,2]
[421971093,1778383770000,-654.30482283,0.00010015,2]
[421971077,1778383770000,-654.30482283,0.00010015,2]
[421971096,1778383770000,-654.30482283,0.00010015,2]
[421971095,1778383770000,-654.30482283,0.00010015,2]
[421971094,1778383770000,-654.30482283,0.00010015,2]
[421971092,1778383770000,-654.30482283,0.00010015,2]
[421971091,1778383770000,-654.30482283,0.00010015,2]
[421971090,1778383770000,-654.30482283,0.00010015,2]
[421971088,1778383770000,-654.30482283,0.00010015,2]
[421971089,1778383770000,-654.30482283,0.00010015,2]
[421971087,1778383770000,-654.30482283,0.00010015,2]
[421971076,1778383770000,-654.30482283,0.00010015,2]
[421971086,1778383770000,-654.30482283,0.00010015,2]
[421971084,1778383770000,-654.30482283,0.00010015,2]
[421971083,1778383770000,-654.30482283,0.00010015,2]
[421971082,1778383770000,-654.30482283,0.00010015,2]
[421971081,1778383770000,-654.30482283,0.00010015,2]
[421971080,1778383770000,-654.30482283,0.00010015,2]
[421971079,1778383770000,-654.30482283,0.00010015,2]
[421971078,1778383770000,-654.30482283,0.00010015,2]
[421971085,1778383770000,-654.30482283,0.00010015,2]
[421971109,1778383771000,-654.30482283,0.00010015,2]
[421971108,1778383771000,-654.30482283,0.00010015,2]
[421971107,1778383771000,-654.30482283,0.00010015,2]
[421971106,1778383771000,-654.30482283,0.00010015,2]
[421971105,1778383771000,-654.30482283,0.00010015,2]
[421971104,1778383771000,-654.30482283,0.00010015,2]
[421971099,1778383771000,-654.30482283,0.00010015,2]
[421971102,1778383771000,-654.30482283,0.00010015,2]
[421971101,1778383771000,-654.30482283,0.00010015,2]
[421971110,1778383771000,-654.30482283,0.00010015,2]
[421971097,1778383771000,-654.30482283,0.00010015,2]
[421971098,1778383771000,-654.30482283,0.00010015,2]
[421971103,1778383771000,-654.30482283,0.00010015,2]
[421971111,1778383771000,-654.30482283,0.00010015,2]
[421971100,1778383771000,-654.30482283,0.00010015,2]
[421971114,1778383771000,-654.30482283,0.00010015,2]
[421971126,1778383771000,-315.21126154,0.00010015,2]
[421971125,1778383771000,-654.30482283,0.00010015,2]
[421971124,1778383771000,-654.30482283,0.00010015,2]
[421971112,1778383771000,-654.30482283,0.00010015,2]
[421971123,1778383771000,-654.30482283,0.00010015,2]
[421971121,1778383771000,-654.30482283,0.00010015,2]
[421971122,1778383771000,-654.30482283,0.00010015,2]
[421971118,1778383771000,-654.30482283,0.00010015,2]
[421971119,1778383771000,-654.30482283,0.00010015,2]
[421971117,1778383771000,-654.30482283,0.00010015,2]
[421971116,1778383771000,-654.30482283,0.00010015,2]
[421971115,1778383771000,-654.30482283,0.00010015,2]
[421971113,1778383771000,-654.30482283,0.00010015,2]
[421971120,1778383771000,-654.30482283,0.00010015,2]
[421971129,1778383774000,-308.42272198,0.00010015,2]
[421971127,1778383774000,-339.09356129,0.00010015,2]
[421971128,1778383774000,-654.30482283,0.00010015,2]
[421971130,1778383774000,-501.16787376,0.00010015,2]
[421971132,1778383774000,-637.94720225,0.00010015,2]
[421971133,1778383774000,-637.94720225,0.00010015,2]
[421971134,1778383774000,-637.94720225,0.00010015,2]
[421971135,1778383774000,-120.39739017,0.00010015,2]
[421971131,1778383774000,-637.94720225,0.00010015,2]
[421971165,1778383832000,-137414.8735,9.915e-05,2]
[421971164,1778383832000,-500.0,9.914e-05,2]
[421971158,1778383832000,-500.0,9.914e-05,2]
[421971160,1778383832000,-500.0,9.914e-05,2]
[421971161,1778383832000,-500.0,9.914e-05,2]
[421971163,1778383832000,-500.0,9.914e-05,2]
[421971156,1778383832000,-500.0,9.914e-05,2]
[421971159,1778383832000,-500.0,9.914e-05,2]
[421971167,1778383832000,-500.0,0.00010015,2]
[421971151,1778383832000,-575.14720357,9.914e-05,2]
[421971144,1778383832000,-142.79258695,9.914e-05,2]
[421971154,1778383832000,-377.182643,9.914e-05,2]
[421971152,1778383832000,-500.0,9.914e-05,2]
[421971147,1778383832000,-193.0,9.914e-05,2]
[421971145,1778383832000,-157.20741305,9.914e-05,2]
[421971150,1778383832000,-467.65466279,9.914e-05,2]
[421971146,1778383832000,-300.0,9.914e-05,2]
[421971148,1778383832000,-1200.0,9.914e-05,2]
[421971153,1778383832000,-500.0,9.914e-05,2]
[421971149,1778383832000,-150.0,9.914e-05,2]
[421971143,1778383832000,-789.52,9.582e-05,2]
[421971166,1778383832000,-500.0,0.00010015,2]
[421971155,1778383832000,-500.0,9.914e-05,2]
[421971168,1778383832000,-500.0,0.00010015,2]
[421971157,1778383832000,-500.0,9.914e-05,2]
[421971171,1778383832000,-192.88512473,0.00010015,2]
[421971169,1778383832000,-500.0,0.00010015,2]
[421971195,1778383832000,-1809.26,0.00010529,2]
[421971189,1778383832000,-250.0,0.00010436,2]
[421971184,1778383832000,-25007.74636749,0.00010363,2]
[421971186,1778383832000,-5235.2150769,0.00010363,2]
[421971185,1778383832000,-184030.39114422,0.00010363,2]
[421971191,1778383832000,-151.0,0.00010475,2]
[421971190,1778383832000,-151.0,0.00010475,2]
[421971183,1778383832000,-78992.95254499,0.00010363,2]
[421971181,1778383832000,-1809.26,0.00010278,2]
[421971188,1778383832000,-211.6108325,0.00010375,2]
[421971192,1778383832000,-151.0,0.00010475,2]
[421971162,1778383832000,-500.0,9.914e-05,2]
[421971182,1778383832000,-9582.57997,0.00010339,2]
[421971173,1778383832000,-5000.0,0.00010016,2]
[421971172,1778383832000,-702260.4137,0.00010016,2]
[421971179,1778383832000,-500.0,0.00010173,2]
[421971177,1778383832000,-907.96094231,0.00010151,2]
[421971193,1778383832000,-220.38526098,0.000105,2]
[421971170,1778383832000,-446.41610468,0.00010015,2]
[421971180,1778383832000,-907.96094231,0.00010275,2]
[421971175,1778383832000,-154.3164136,0.00010066,2]
[421971176,1778383832000,-175.7329,0.00010126,2]
[421971178,1778383832000,-500.0,0.00010173,2]
[421971174,1778383832000,-1809.26,0.00010027,2]
[421971200,1778383833000,-500.0,9.914e-05,2]
[421971206,1778383833000,-154.31641359,0.00010647,2]
[421971208,1778383833000,-216.77509962,0.0001069,2]
[421971198,1778383833000,-1192.49316525,0.000106,2]
[421971197,1778383833000,-250.0,0.00010541,2]
[421971199,1778383833000,-200.57713471,0.000106,2]
[421971203,1778383833000,-820.6910262,0.000106,2]
[421971201,1778383833000,-500.0,9.914e-05,2]
[421971204,1778383833000,-154.3164136,0.00010647,2]
[421971211,1778383833000,-500.0,9.914e-05,2]
[421971210,1778383833000,-3701.3,0.000107,2]
[421971209,1778383833000,-4752.7499812,0.000107,2]
[421971212,1778383833000,-431.70372915,0.000107,2]
[421971214,1778383833000,-793.0,0.000107,2]
[421971213,1778383833000,-615.87763536,0.000107,2]
[421971202,1778383833000,-435.47000087,0.000106,2]
[421971216,1778383837000,-500.0,9.914e-05,2]
[421971218,1778383837000,-500.0,9.914e-05,2]
[421971215,1778383837000,-500.0,9.914e-05,2]
[421971219,1778383837000,-500.0,9.914e-05,2]
[421971220,1778383837000,-500.0,9.914e-05,2]
[421971217,1778383837000,-500.0,9.914e-05,2]
[421971222,1778383838000,-500.0,9.914e-05,2]
[421971232,1778383838000,-500.0,9.914e-05,2]
[421971223,1778383838000,-500.0,9.914e-05,2]
[421971227,1778383838000,-500.0,9.914e-05,2]
[421971224,1778383838000,-500.0,9.914e-05,2]
[421971225,1778383838000,-500.0,9.914e-05,2]
[421971231,1778383838000,-500.0,9.914e-05,2]
[421971228,1778383838000,-500.0,9.914e-05,2]
[421971221,1778383838000,-500.0,9.914e-05,2]
[421971226,1778383838000,-500.0,9.914e-05,2]
[421971235,1778383838000,-500.0,9.914e-05,2]
[421971229,1778383838000,-500.0,9.914e-05,2]
[421971230,1778383838000,-500.0,9.914e-05,2]
[421971242,1778383838000,-455.182,0.000107,2]
[421971239,1778383838000,-27207.78442402,0.000107,2]
[421971238,1778383838000,-79949.3487546,0.000107,2]
[421971240,1778383838000,-3501.60150192,0.000107,2]
[421971241,1778383838000,-52144.7305373,0.000107,2]
[421971237,1778383838000,-2591.75042248,0.000106,2]
[421971234,1778383838000,-500.0,9.914e-05,2]
[421971233,1778383838000,-594.37774502,9.914e-05,2]
[421971236,1778383838000,-500.0,9.914e-05,2]
[421971385,1778383840000,-770.49806814,0.000107,2]
[421971384,1778383840000,-628.08247753,0.000107,2]
[421971397,1778383844000,-234680.77186032,0.000107,2]
[421971396,1778383844000,-590.75782011,0.000107,2]
[421971408,1778383845000,-14607.70933578,0.000107,2]
[421971409,1778383845000,-735.84,0.000107,2]
[421971398,1778383845000,-450.56829862,0.000107,2]
[421971410,1778383846000,-301100.20287952,0.000107,2]